[Event "Titled Tuesday Blitz November 01 Early 2022"]
[White "Papasimakopoulos, Alexandros"]
[Black "Besedes, Danilo"]
[WhiteFideId "4244125"]
[BlackFideId "946796"]
[WhiteElo "2357"]
[BlackElo "2352"]
[Result "1/2-1/2"]
[Round "02"]
[TimeControl "180+1"]
[Date "2022.11.02"]
[WhiteClock "0:00:04"]
[BlackClock "0:00:05"]

1. d4 {[%clk 0:03:00]}  d6 {[%clk 0:02:58]} 2. c4 {[%clk 0:03:01]}  e5 {[%clk 0:02:57]} 3. Nf3 {[%clk 0:03:01]}  Nc6 {[%clk 0:02:56]} 4. d5 {[%clk 0:02:52]}  Nce7 {[%clk 0:02:56]} 5. e4 {[%clk 0:02:53]}  Nf6 {[%clk 0:02:56]} 6. Bd3 {[%clk 0:02:53]}  Ng6 {[%clk 0:02:55]} 7. O-O {[%clk 0:02:52]}  Be7 {[%clk 0:02:55]} 8. Nc3 {[%clk 0:02:52]}  O-O {[%clk 0:02:55]} 9. Re1 {[%clk 0:02:52]}  a5 {[%clk 0:02:54]} 10. a3 {[%clk 0:02:49]}  Bg4 {[%clk 0:02:52]} 11. h3 {[%clk 0:02:50]}  Bd7 {[%clk 0:02:50]} 12. Be3 {[%clk 0:02:48]}  c5 {[%clk 0:02:41]} 13. dxc6 {[%clk 0:02:42]}  bxc6 {[%clk 0:02:38]} 14. b4 {[%clk 0:02:42]}  axb4 {[%clk 0:02:38]} 15. axb4 {[%clk 0:02:43]}  Rb8 {[%clk 0:02:32]} 16. b5 {[%clk 0:02:41]}  cxb5 {[%clk 0:02:31]} 17. cxb5 {[%clk 0:02:42]}  Be6 {[%clk 0:02:15]} 18. Ng5 {[%clk 0:02:34]}  Bd7 {[%clk 0:02:15]} 19. Ra7 {[%clk 0:02:20]}  h6 {[%clk 0:01:57]} 20. Nf3 {[%clk 0:02:20]}  Be6 {[%clk 0:01:57]} 21. Qd2 {[%clk 0:01:58]}  Nd7 {[%clk 0:01:52]} 22. Rea1 {[%clk 0:01:50]}  Nb6 {[%clk 0:01:45]} 23. Bf1 {[%clk 0:01:23]}  Nc4 {[%clk 0:01:30]} 24. Bxc4 {[%clk 0:01:23]}  Bxc4 {[%clk 0:01:31]} 25. b6 {[%clk 0:01:23]}  Nf4 {[%clk 0:01:21]} 26. Rc7 {[%clk 0:00:52]}  Be6 {[%clk 0:00:44]} 27. Raa7 {[%clk 0:00:52]}  Re8 {[%clk 0:00:37]} 28. Bxf4 {[%clk 0:00:36]}  exf4 {[%clk 0:00:37]} 29. Nd4 {[%clk 0:00:37]}  Rxb6 {[%clk 0:00:32]} 30. Nc6 {[%clk 0:00:36]}  Rxc6 {[%clk 0:00:30]} 31. Rxc6 {[%clk 0:00:37]}  Qb8 {[%clk 0:00:26]} 32. Rcc7 {[%clk 0:00:35]}  Bg5 {[%clk 0:00:24]} 33. Rcb7 {[%clk 0:00:30]}  Qc8 {[%clk 0:00:24]} 34. Rc7 {[%clk 0:00:28]}  Qb8 {[%clk 0:00:24]} 35. f3 {[%clk 0:00:19]}  Qb6+ {[%clk 0:00:23]} 36. Kh1 {[%clk 0:00:19]}  Qb4 {[%clk 0:00:21]} 37. Rcb7 {[%clk 0:00:18]}  Qc5 {[%clk 0:00:20]} 38. Nd5 {[%clk 0:00:17]}  Rc8 {[%clk 0:00:18]} 39. Ne7+ {[%clk 0:00:17]}  Bxe7 {[%clk 0:00:18]} 40. Rxe7 {[%clk 0:00:18]}  Qe5 {[%clk 0:00:18]} 41. Rec7 {[%clk 0:00:17]}  Rb8 {[%clk 0:00:18]} 42. Rcb7 {[%clk 0:00:18]}  Rc8 {[%clk 0:00:18]} 43. Rb6 {[%clk 0:00:18]}  d5 {[%clk 0:00:13]} 44. Ra5 {[%clk 0:00:18]}  Qc7 {[%clk 0:00:12]} 45. Rb4 {[%clk 0:00:15]}  dxe4 {[%clk 0:00:11]} 46. Rxe4 {[%clk 0:00:15]}  g5 {[%clk 0:00:10]} 47. Re1 {[%clk 0:00:14]}  Kg7 {[%clk 0:00:11]} 48. Qd4+ {[%clk 0:00:14]}  Kg8 {[%clk 0:00:09]} 49. Qf6 {[%clk 0:00:14]}  Qxa5 {[%clk 0:00:09]} 50. Rxe6 {[%clk 0:00:13]}  fxe6 {[%clk 0:00:07]} 51. Qg6+ {[%clk 0:00:10]}  Kf8 {[%clk 0:00:06]} 52. Qf6+ {[%clk 0:00:10]}  Kg8 {[%clk 0:00:07]} 53. Qxe6+ {[%clk 0:00:10]}  Kg7 {[%clk 0:00:07]} 54. Qd7+ {[%clk 0:00:08]}  Kg6 {[%clk 0:00:06]} 55. Qe6+ {[%clk 0:00:07]}  Kg7 {[%clk 0:00:06]} 56. Qd7+ {[%clk 0:00:06]}  Kg6 {[%clk 0:00:06]} 57. Qxc8 {[%clk 0:00:06]}  Qe1+ {[%clk 0:00:06]} 58. Kh2 {[%clk 0:00:06]}  Qe7 {[%clk 0:00:07]} 59. Qc6+ {[%clk 0:00:06]}  Kg7 {[%clk 0:00:07]} 60. Qd5 {[%clk 0:00:06]}  Qf6 {[%clk 0:00:08]} 61. Qd7+ {[%clk 0:00:06]}  Kg6 {[%clk 0:00:08]} 62. Qg4 {[%clk 0:00:06]}  h5 {[%clk 0:00:07]} 63. Qc8 {[%clk 0:00:06]}  Kh6 {[%clk 0:00:06]} 64. Qg8 {[%clk 0:00:06]}  Qg6 {[%clk 0:00:05]} 65. Qh8+ {[%clk 0:00:06]}  Qh7 {[%clk 0:00:05]} 66. Qb8 {[%clk 0:00:06]}  Qg6 {[%clk 0:00:05]} 67. h4 {[%clk 0:00:06]}  Qf6 {[%clk 0:00:05]} 68. hxg5+ {[%clk 0:00:06]}  Qxg5 {[%clk 0:00:05]} 69. Qh8+ {[%clk 0:00:05]}  Kg6 {[%clk 0:00:05]} 70. Kg1 {[%clk 0:00:04]}  Qf5 {[%clk 0:00:04]} 71. Qg8+ {[%clk 0:00:04]}  Kh6 {[%clk 0:00:04]} 72. Qh8+ {[%clk 0:00:03]}  Kg5 {[%clk 0:00:04]} 73. Qg7+ {[%clk 0:00:03]}  Kh4 {[%clk 0:00:03]} 74. Kh2 {[%clk 0:00:03]}  Qg5 {[%clk 0:00:03]} 75. Qd7 {[%clk 0:00:02]}  Qg3+ {[%clk 0:00:02]} 76. Kg1 {[%clk 0:00:03]}  Qe1+ {[%clk 0:00:03]} 77. Kh2 {[%clk 0:00:03]}  Qg3+ {[%clk 0:00:04]} 78. Kg1 {[%clk 0:00:04]}  Qe1+ {[%clk 0:00:04]} 79. Kh2 {[%clk 0:00:04]}  Qg3+ {[%clk 0:00:05]} 1/2-1/2


[Site "https://www.chess.com"]

[Event "Titled Tuesday Blitz November 01 Early 2022"]
[White "Pappelis, Dimitrios"]
[Black "Reprintsev, Alexander"]
[WhiteFideId "4215281"]
[BlackFideId "14100541"]
[WhiteElo "2104"]
[BlackElo "2230"]
[Result "1/2-1/2"]
[Round "02"]
[TimeControl "180+1"]
[Date "2022.11.02"]
[WhiteClock "0:00:06"]
[BlackClock "0:00:11"]

1. d4 {[%clk 0:03:00]}  d5 {[%clk 0:02:59]} 2. c4 {[%clk 0:02:58]}  e5 {[%clk 0:02:58]} 3. dxe5 {[%clk 0:02:54]}  d4 {[%clk 0:02:58]} 4. Nf3 {[%clk 0:02:54]}  Nc6 {[%clk 0:02:57]} 5. a3 {[%clk 0:02:50]}  g6 {[%clk 0:02:56]} 6. e3 {[%clk 0:02:44]}  Bg4 {[%clk 0:02:54]} 7. Be2 {[%clk 0:02:34]}  Bxf3 {[%clk 0:02:52]} 8. Bxf3 {[%clk 0:02:33]}  Nge7 {[%clk 0:02:51]} 9. O-O {[%clk 0:02:30]}  Bg7 {[%clk 0:02:50]} 10. exd4 {[%clk 0:02:28]}  Qxd4 {[%clk 0:02:49]} 11. Nc3 {[%clk 0:02:23]}  Qxc4 {[%clk 0:02:47]} 12. Bg5 {[%clk 0:02:12]}  O-O {[%clk 0:02:16]} 13. Rc1 {[%clk 0:02:04]}  Rad8 {[%clk 0:02:05]} 14. Nd5 {[%clk 0:01:59]}  Rxd5 {[%clk 0:01:55]} 15. Rxc4 {[%clk 0:01:49]}  Rxd1 {[%clk 0:01:54]} 16. Rxd1 {[%clk 0:01:48]}  Nxe5 {[%clk 0:01:47]} 17. Rxc7 {[%clk 0:01:38]}  Nxf3+ {[%clk 0:01:47]} 18. gxf3 {[%clk 0:01:38]}  Nc6 {[%clk 0:01:40]} 19. Rxb7 {[%clk 0:01:36]}  h6 {[%clk 0:01:39]} 20. Be3 {[%clk 0:01:32]}  a5 {[%clk 0:01:38]} 21. b4 {[%clk 0:01:28]}  axb4 {[%clk 0:01:37]} 22. axb4 {[%clk 0:01:29]}  Ne5 {[%clk 0:01:35]} 23. Kg2 {[%clk 0:01:26]}  Nc4 {[%clk 0:01:30]} 24. b5 {[%clk 0:01:25]}  Re8 {[%clk 0:01:28]} 25. Rc1 {[%clk 0:01:14]}  Nd6 {[%clk 0:01:17]} 26. Rd7 {[%clk 0:01:10]}  Nxb5 {[%clk 0:01:16]} 27. Rb1 {[%clk 0:01:05]}  Re5 {[%clk 0:01:13]} 28. Rbd1 {[%clk 0:00:56]}  Nc3 {[%clk 0:01:03]} 29. Rc1 {[%clk 0:00:53]}  Rf5 {[%clk 0:01:02]} 30. Ra1 {[%clk 0:00:35]}  g5 {[%clk 0:00:48]} 31. Ra8+ {[%clk 0:00:34]}  Kh7 {[%clk 0:00:47]} 32. Raa7 {[%clk 0:00:33]}  Kg6 {[%clk 0:00:47]} 33. Ra6+ {[%clk 0:00:33]}  Kh7 {[%clk 0:00:44]} 34. Raa7 {[%clk 0:00:33]}  Kg6 {[%clk 0:00:43]} 35. Bd4 {[%clk 0:00:30]}  Bxd4 {[%clk 0:00:41]} 36. Rxd4 {[%clk 0:00:29]}  Nd5 {[%clk 0:00:41]} 37. Ra6+ {[%clk 0:00:18]}  f6 {[%clk 0:00:40]} 38. Rda4 {[%clk 0:00:09]}  Nf4+ {[%clk 0:00:39]} 39. Kg3 {[%clk 0:00:07]}  Rb5 {[%clk 0:00:29]} 40. h4 {[%clk 0:00:06]}  Rb1 {[%clk 0:00:29]} 41. hxg5 {[%clk 0:00:04]}  hxg5 {[%clk 0:00:28]} 42. Rxf4 {[%clk 0:00:02]}  gxf4+ {[%clk 0:00:27]} 43. Kxf4 {[%clk 0:00:03]}  Rb4+ {[%clk 0:00:27]} 44. Kg3 {[%clk 0:00:04]}  Kg5 {[%clk 0:00:26]} 45. Ra8 {[%clk 0:00:04]}  Rb1 {[%clk 0:00:24]} 46. Rg8+ {[%clk 0:00:04]}  Kf5 {[%clk 0:00:24]} 47. Ra8 {[%clk 0:00:04]}  Rg1+ {[%clk 0:00:23]} 48. Kh2 {[%clk 0:00:04]}  Rg6 {[%clk 0:00:23]} 49. Ra4 {[%clk 0:00:04]}  Ke5 {[%clk 0:00:22]} 50. Kh3 {[%clk 0:00:04]}  f5 {[%clk 0:00:21]} 51. Ra5+ {[%clk 0:00:03]}  Kf4 {[%clk 0:00:21]} 52. Ra3 {[%clk 0:00:04]}  Rg1 {[%clk 0:00:19]} 53. Kh2 {[%clk 0:00:04]}  Rg8 {[%clk 0:00:18]} 54. Kh1 {[%clk 0:00:04]}  Rg7 {[%clk 0:00:14]} 55. Kh2 {[%clk 0:00:05]}  Rg6 {[%clk 0:00:14]} 56. Kh1 {[%clk 0:00:05]}  Rg5 {[%clk 0:00:13]} 57. Kh2 {[%clk 0:00:05]}  Rg6 {[%clk 0:00:12]} 58. Kh1 {[%clk 0:00:06]}  Rg5 {[%clk 0:00:11]} 59. Kh2 {[%clk 0:00:06]}  Rg6 {[%clk 0:00:11]} 1/2-1/2


[Site "https://www.chess.com"]

[Event "Titled Tuesday Blitz November 01 Early 2022"]
[White "Parkhov, Yair"]
[Black "Sarkar, Justin"]
[WhiteFideId "2813408"]
[BlackFideId "2010011"]
[WhiteElo "2384"]
[BlackElo "2250"]
[Result "1-0"]
[Round "02"]
[TimeControl "180+1"]
[Date "2022.11.02"]
[WhiteClock "0:00:40"]
[BlackClock "0:00:02"]

1. e4 {[%clk 0:03:00]}  e5 {[%clk 0:02:55]} 2. Nf3 {[%clk 0:02:58]}  Nc6 {[%clk 0:02:54]} 3. Bb5 {[%clk 0:02:59]}  a6 {[%clk 0:02:52]} 4. Ba4 {[%clk 0:03:00]}  Nf6 {[%clk 0:02:50]} 5. Nc3 {[%clk 0:02:54]}  b5 {[%clk 0:02:42]} 6. Bb3 {[%clk 0:02:54]}  Bc5 {[%clk 0:02:34]} 7. O-O {[%clk 0:02:48]}  d6 {[%clk 0:02:30]} 8. h3 {[%clk 0:02:46]}  O-O {[%clk 0:02:08]} 9. a4 {[%clk 0:02:36]}  Rb8 {[%clk 0:02:02]} 10. axb5 {[%clk 0:02:35]}  axb5 {[%clk 0:02:03]} 11. Nd5 {[%clk 0:02:36]}  Nd4 {[%clk 0:01:53]} 12. Nxd4 {[%clk 0:02:25]}  Bxd4 {[%clk 0:01:50]} 13. c3 {[%clk 0:02:19]}  Nxd5 {[%clk 0:01:34]} 14. Bxd5 {[%clk 0:02:16]}  Bb6 {[%clk 0:01:31]} 15. d4 {[%clk 0:02:07]}  Bb7 {[%clk 0:01:13]} 16. Bxb7 {[%clk 0:01:56]}  Rxb7 {[%clk 0:01:14]} 17. dxe5 {[%clk 0:01:55]}  dxe5 {[%clk 0:01:14]} 18. Qe2 {[%clk 0:01:54]}  Qe7 {[%clk 0:01:03]} 19. Rd1 {[%clk 0:01:46]}  Rd8 {[%clk 0:00:53]} 20. Rxd8+ {[%clk 0:01:40]}  Qxd8 {[%clk 0:00:54]} 21. Bg5 {[%clk 0:01:40]}  f6 {[%clk 0:00:48]} 22. Be3 {[%clk 0:01:35]}  c6 {[%clk 0:00:33]} 23. Rd1 {[%clk 0:01:32]}  Qc7 {[%clk 0:00:20]} 24. Qh5 {[%clk 0:01:30]}  g6 {[%clk 0:00:14]} 25. Qg4 {[%clk 0:01:29]}  Bxe3 {[%clk 0:00:12]} 26. Qe6+ {[%clk 0:01:23]}  Qf7 {[%clk 0:00:11]} 27. Qc8+ {[%clk 0:01:23]}  Kg7 {[%clk 0:00:11]} 28. fxe3 {[%clk 0:01:23]}  Rc7 {[%clk 0:00:10]} 29. Qd8 {[%clk 0:01:23]}  Qe7 {[%clk 0:00:09]} 30. Qxe7+ {[%clk 0:01:20]}  Rxe7 {[%clk 0:00:09]} 31. Rd6 {[%clk 0:01:20]}  Rc7 {[%clk 0:00:09]} 32. Kf2 {[%clk 0:01:20]}  Kf7 {[%clk 0:00:10]} 33. Ke2 {[%clk 0:01:18]}  Ke7 {[%clk 0:00:09]} 34. Rd1 {[%clk 0:01:19]}  Ra7 {[%clk 0:00:09]} 35. g4 {[%clk 0:01:17]}  Ra2 {[%clk 0:00:08]} 36. Rb1 {[%clk 0:01:17]}  c5 {[%clk 0:00:07]} 37. Kd3 {[%clk 0:01:17]}  Kd6 {[%clk 0:00:07]} 38. Kc2 {[%clk 0:01:18]}  Ra4 {[%clk 0:00:07]} 39. Kd3 {[%clk 0:01:16]}  Ra2 {[%clk 0:00:06]} 40. h4 {[%clk 0:01:15]}  h6 {[%clk 0:00:06]} 41. Kc2 {[%clk 0:01:00]}  Ke6 {[%clk 0:00:06]} 42. Rd1 {[%clk 0:00:55]}  Ra4 {[%clk 0:00:05]} 43. Kd3 {[%clk 0:00:48]}  Ra2 {[%clk 0:00:04]} 44. Kc2 {[%clk 0:00:45]}  Ra4 {[%clk 0:00:04]} 45. Rd5 {[%clk 0:00:45]}  Rxe4 {[%clk 0:00:03]} 46. Rxc5 {[%clk 0:00:46]}  Rxg4 {[%clk 0:00:03]} 47. Rxb5 {[%clk 0:00:46]}  Rxh4 {[%clk 0:00:03]} 48. b4 {[%clk 0:00:45]}  Rh2+ {[%clk 0:00:03]} 49. Kd3 {[%clk 0:00:45]}  h5 {[%clk 0:00:03]} 50. Rb8 {[%clk 0:00:45]}  h4 {[%clk 0:00:03]} 51. b5 {[%clk 0:00:45]}  Rb2 {[%clk 0:00:02]} 52. c4 {[%clk 0:00:43]}  h3 {[%clk 0:00:02]} 53. Rh8 {[%clk 0:00:40]} 1-0


[Site "https://www.chess.com"]

[Event "Titled Tuesday Blitz November 01 Early 2022"]
[White "Perez Rodriguez, Jennifer"]
[Black "Atabayev, Yusup"]
[WhiteFideId "3507831"]
[BlackFideId "14001128"]
[WhiteElo "2170"]
[BlackElo "2454"]
[Result "0-1"]
[Round "02"]
[TimeControl "180+1"]
[Date "2022.11.02"]
[WhiteClock "0:00:25"]
[BlackClock "0:00:35"]

1. e4 {[%clk 0:03:00]}  c5 {[%clk 0:02:58]} 2. c3 {[%clk 0:02:59]}  d5 {[%clk 0:02:57]} 3. exd5 {[%clk 0:03:00]}  Qxd5 {[%clk 0:02:58]} 4. d4 {[%clk 0:03:01]}  Nc6 {[%clk 0:02:58]} 5. Nf3 {[%clk 0:03:01]}  e5 {[%clk 0:02:58]} 6. dxe5 {[%clk 0:02:57]}  Qxd1+ {[%clk 0:02:58]} 7. Kxd1 {[%clk 0:02:57]}  Bg4 {[%clk 0:02:59]} 8. Be2 {[%clk 0:02:54]}  O-O-O+ {[%clk 0:02:57]} 9. Nbd2 {[%clk 0:02:53]}  Bxf3 {[%clk 0:02:55]} 10. Bxf3 {[%clk 0:02:52]}  Nxe5 {[%clk 0:02:55]} 11. Kc2 {[%clk 0:02:51]}  Nf6 {[%clk 0:02:49]} 12. Be2 {[%clk 0:02:48]}  Bd6 {[%clk 0:02:48]} 13. Nc4 {[%clk 0:02:41]}  Rhe8 {[%clk 0:02:44]} 14. Nxd6+ {[%clk 0:02:36]}  Rxd6 {[%clk 0:02:45]} 15. Bf4 {[%clk 0:02:35]}  h6 {[%clk 0:02:40]} 16. Rhe1 {[%clk 0:02:34]}  Rde6 {[%clk 0:02:38]} 17. Bb5 {[%clk 0:02:30]}  R8e7 {[%clk 0:02:32]} 18. Rad1 {[%clk 0:02:19]}  a6 {[%clk 0:02:29]} 19. Bf1 {[%clk 0:02:16]}  g5 {[%clk 0:02:27]} 20. Bxe5 {[%clk 0:02:08]}  Rxe5 {[%clk 0:02:27]} 21. Rxe5 {[%clk 0:02:07]}  Rxe5 {[%clk 0:02:28]} 22. h3 {[%clk 0:02:07]}  Kc7 {[%clk 0:02:25]} 23. b4 {[%clk 0:02:02]}  Ne4 {[%clk 0:02:06]} 24. Re1 {[%clk 0:01:58]}  Kd6 {[%clk 0:02:06]} 25. f3 {[%clk 0:01:50]}  Ng3 {[%clk 0:02:01]} 26. Rd1+ {[%clk 0:01:47]}  Kc7 {[%clk 0:01:57]} 27. Bc4 {[%clk 0:01:45]}  f5 {[%clk 0:01:57]} 28. Rd2 {[%clk 0:01:38]}  b5 {[%clk 0:01:55]} 29. Rd5 {[%clk 0:01:21]}  Re1 {[%clk 0:01:27]} 30. Rxc5+ {[%clk 0:01:17]}  Kd6 {[%clk 0:01:27]} 31. Bd3 {[%clk 0:01:14]}  f4 {[%clk 0:01:26]} 32. a4 {[%clk 0:01:12]}  Rg1 {[%clk 0:01:15]} 33. axb5 {[%clk 0:01:11]}  Rxg2+ {[%clk 0:01:15]} 34. Kb3 {[%clk 0:01:11]}  axb5 {[%clk 0:01:13]} 35. Rxb5 {[%clk 0:01:12]}  Rf2 {[%clk 0:01:09]} 36. Rb6+ {[%clk 0:01:11]}  Ke5 {[%clk 0:01:10]} 37. Rxh6 {[%clk 0:01:08]}  Rxf3 {[%clk 0:01:10]} 38. Kc4 {[%clk 0:01:03]}  Rf2 {[%clk 0:00:43]} 39. Rg6 {[%clk 0:01:00]}  Ne4 {[%clk 0:00:35]} 40. Bxe4 {[%clk 0:00:58]}  Kxe4 {[%clk 0:00:36]} 41. Rxg5 {[%clk 0:00:58]}  f3 {[%clk 0:00:37]} 42. Rg7 {[%clk 0:00:54]}  Rh2 {[%clk 0:00:37]} 43. Re7+ {[%clk 0:00:53]}  Kf4 {[%clk 0:00:37]} 44. Rf7+ {[%clk 0:00:53]}  Ke3 {[%clk 0:00:37]} 45. b5 {[%clk 0:00:53]}  Rxh3 {[%clk 0:00:37]} 46. Kb4 {[%clk 0:00:51]}  Rh4+ {[%clk 0:00:37]} 47. c4 {[%clk 0:00:45]}  Rf4 {[%clk 0:00:37]} 48. Re7+ {[%clk 0:00:35]}  Kd2 {[%clk 0:00:36]} 49. Rd7+ {[%clk 0:00:33]}  Kc2 {[%clk 0:00:37]} 50. b6 {[%clk 0:00:25]}  f2 {[%clk 0:00:35]} 0-1


[Site "https://www.chess.com"]

[Event "Titled Tuesday Blitz November 01 Early 2022"]
[White "Pinheiro, Iung Alicio de O."]
[Black "Grandelius, Nils"]
[WhiteFideId "2104350"]
[BlackFideId "1710400"]
[WhiteElo "2283"]
[BlackElo "2617"]
[Result "0-1"]
[Round "02"]
[TimeControl "180+1"]
[Date "2022.11.01"]
[WhiteClock "0:00:05"]
[BlackClock "0:00:17"]

1. e4 {[%clk 0:03:00]}  c5 {[%clk 0:02:58]} 2. Nf3 {[%clk 0:03:00]}  e6 {[%clk 0:02:58]} 3. d3 {[%clk 0:02:58]}  Nc6 {[%clk 0:02:57]} 4. g3 {[%clk 0:02:58]}  d6 {[%clk 0:02:56]} 5. Bg2 {[%clk 0:02:57]}  Be7 {[%clk 0:02:57]} 6. O-O {[%clk 0:02:58]}  Nf6 {[%clk 0:02:57]} 7. Re1 {[%clk 0:02:58]}  O-O {[%clk 0:02:56]} 8. c3 {[%clk 0:02:58]}  Ne5 {[%clk 0:02:56]} 9. Ng5 {[%clk 0:02:28]}  c4 {[%clk 0:02:15]} 10. dxc4 {[%clk 0:02:24]}  Nxc4 {[%clk 0:02:14]} 11. Qe2 {[%clk 0:02:14]}  Qc7 {[%clk 0:02:13]} 12. b3 {[%clk 0:02:05]}  Ne5 {[%clk 0:02:10]} 13. c4 {[%clk 0:02:02]}  h6 {[%clk 0:02:04]} 14. Nh3 {[%clk 0:01:57]}  Bd7 {[%clk 0:01:57]} 15. Nc3 {[%clk 0:01:53]}  a6 {[%clk 0:01:56]} 16. a4 {[%clk 0:01:42]}  Qb6 {[%clk 0:01:54]} 17. Rb1 {[%clk 0:01:37]}  Rac8 {[%clk 0:01:47]} 18. Be3 {[%clk 0:01:33]}  Qa5 {[%clk 0:01:45]} 19. Bd2 {[%clk 0:01:33]}  Qc7 {[%clk 0:01:45]} 20. Nf4 {[%clk 0:01:32]}  Rfe8 {[%clk 0:01:37]} 21. h3 {[%clk 0:01:12]}  Qb8 {[%clk 0:01:34]} 22. a5 {[%clk 0:01:02]}  Bd8 {[%clk 0:01:24]} 23. Ra1 {[%clk 0:00:57]}  Nc6 {[%clk 0:01:20]} 24. Nd1 {[%clk 0:00:46]}  e5 {[%clk 0:01:11]} 25. Nd5 {[%clk 0:00:45]}  Nxd5 {[%clk 0:01:10]} 26. exd5 {[%clk 0:00:43]}  Nd4 {[%clk 0:01:11]} 27. Qd3 {[%clk 0:00:41]}  Bf6 {[%clk 0:01:06]} 28. Rb1 {[%clk 0:00:27]}  Bf5 {[%clk 0:01:04]} 29. Be4 {[%clk 0:00:27]}  Bxh3 {[%clk 0:01:04]} 30. Be3 {[%clk 0:00:21]}  Qc7 {[%clk 0:01:02]} 31. Bxd4 {[%clk 0:00:21]}  exd4 {[%clk 0:01:03]} 32. Bh7+ {[%clk 0:00:21]}  Kh8 {[%clk 0:01:01]} 33. Nb2 {[%clk 0:00:17]}  Qxa5 {[%clk 0:00:51]} 34. Rxe8+ {[%clk 0:00:13]}  Rxe8 {[%clk 0:00:52]} 35. Bf5 {[%clk 0:00:12]}  Bxf5 {[%clk 0:00:44]} 36. Qxf5 {[%clk 0:00:13]}  Qd2 {[%clk 0:00:38]} 37. Nd3 {[%clk 0:00:11]}  b6 {[%clk 0:00:28]} 38. Kg2 {[%clk 0:00:12]}  a5 {[%clk 0:00:18]} 39. Qf3 {[%clk 0:00:12]}  Qc3 {[%clk 0:00:17]} 40. Qf5 {[%clk 0:00:08]}  Kg8 {[%clk 0:00:17]} 41. Qf3 {[%clk 0:00:07]}  Qc2 {[%clk 0:00:15]} 42. Qd1 {[%clk 0:00:07]}  Qxd1 {[%clk 0:00:15]} 43. Rxd1 {[%clk 0:00:08]}  Re2 {[%clk 0:00:15]} 44. Kf3 {[%clk 0:00:07]}  Rc2 {[%clk 0:00:15]} 45. Rb1 {[%clk 0:00:06]}  Rc3 {[%clk 0:00:14]} 46. Ke2 {[%clk 0:00:07]}  Kf8 {[%clk 0:00:14]} 47. Kd2 {[%clk 0:00:07]}  Bg5+ {[%clk 0:00:13]} 48. f4 {[%clk 0:00:08]}  Bd8 {[%clk 0:00:14]} 49. Rb2 {[%clk 0:00:08]}  Ke7 {[%clk 0:00:14]} 50. Rb1 {[%clk 0:00:08]}  Kd7 {[%clk 0:00:14]} 51. Rb2 {[%clk 0:00:08]}  Bf6 {[%clk 0:00:14]} 52. Rb1 {[%clk 0:00:08]}  Kc7 {[%clk 0:00:15]} 53. Rb2 {[%clk 0:00:09]}  b5 {[%clk 0:00:16]} 54. Rb1 {[%clk 0:00:09]}  bxc4 {[%clk 0:00:14]} 55. bxc4 {[%clk 0:00:09]}  Rxc4 {[%clk 0:00:15]} 56. Rb5 {[%clk 0:00:09]}  Ra4 {[%clk 0:00:14]} 57. Rb1 {[%clk 0:00:09]}  Ra2+ {[%clk 0:00:14]} 58. Kd1 {[%clk 0:00:09]}  Bd8 {[%clk 0:00:14]} 59. Rc1+ {[%clk 0:00:09]}  Kd7 {[%clk 0:00:15]} 60. Rc6 {[%clk 0:00:10]}  Rg2 {[%clk 0:00:13]} 61. Ke1 {[%clk 0:00:10]}  Rxg3 {[%clk 0:00:14]} 62. Nf2 {[%clk 0:00:11]}  Re3+ {[%clk 0:00:14]} 63. Kd2 {[%clk 0:00:11]}  Rc3 {[%clk 0:00:14]} 64. Ra6 {[%clk 0:00:10]}  Rc5 {[%clk 0:00:15]} 65. Ra7+ {[%clk 0:00:08]}  Bc7 {[%clk 0:00:15]} 66. Nd3 {[%clk 0:00:08]}  Rxd5 {[%clk 0:00:15]} 67. Ke2 {[%clk 0:00:07]}  h5 {[%clk 0:00:16]} 68. Kf3 {[%clk 0:00:07]}  Kc6 {[%clk 0:00:16]} 69. Ke4 {[%clk 0:00:07]}  f5+ {[%clk 0:00:16]} 70. Kf3 {[%clk 0:00:06]}  Rb5 {[%clk 0:00:16]} 71. Ra8 {[%clk 0:00:07]}  Rb8 {[%clk 0:00:16]} 72. Ra6+ {[%clk 0:00:05]}  Kb5 {[%clk 0:00:17]} 73. Ra7 {[%clk 0:00:05]}  Kb6 {[%clk 0:00:17]} 0-1


[Site "https://www.chess.com"]

[Event "Titled Tuesday Blitz November 01 Early 2022"]
[White "Postnikov, Daniil"]
[Black "Alahakoon, Isuru"]
[WhiteFideId "4166329"]
[BlackFideId "9900993"]
[WhiteElo "2261"]
[BlackElo "2062"]
[Result "1-0"]
[Round "02"]
[TimeControl "180+1"]
[Date "2022.11.02"]
[WhiteClock "0:00:13"]
[BlackClock "0:00:03"]

1. d4 {[%clk 0:03:00]}  d5 {[%clk 0:02:57]} 2. c4 {[%clk 0:03:01]}  e6 {[%clk 0:02:57]} 3. Nf3 {[%clk 0:03:01]}  Nf6 {[%clk 0:02:56]} 4. g3 {[%clk 0:03:01]}  Bb4+ {[%clk 0:02:55]} 5. Bd2 {[%clk 0:03:01]}  Bd6 {[%clk 0:02:55]} 6. Bg2 {[%clk 0:03:01]}  c6 {[%clk 0:02:44]} 7. Qc2 {[%clk 0:03:01]}  O-O {[%clk 0:02:42]} 8. O-O {[%clk 0:03:00]}  Nbd7 {[%clk 0:02:42]} 9. Rd1 {[%clk 0:02:59]}  Ne4 {[%clk 0:02:41]} 10. Nc3 {[%clk 0:02:55]}  f5 {[%clk 0:02:40]} 11. Bf4 {[%clk 0:02:53]}  Bxf4 {[%clk 0:02:35]} 12. gxf4 {[%clk 0:02:54]}  Rf6 {[%clk 0:02:30]} 13. e3 {[%clk 0:02:48]}  Rg6 {[%clk 0:02:25]} 14. Ne2 {[%clk 0:02:45]}  Ndf6 {[%clk 0:02:16]} 15. Ne5 {[%clk 0:02:41]}  Rh6 {[%clk 0:02:14]} 16. f3 {[%clk 0:02:33]}  Nd6 {[%clk 0:02:06]} 17. b3 {[%clk 0:02:30]}  Qe8 {[%clk 0:02:01]} 18. a4 {[%clk 0:02:17]}  Qh5 {[%clk 0:01:58]} 19. h3 {[%clk 0:02:17]}  g5 {[%clk 0:01:53]} 20. fxg5 {[%clk 0:02:10]}  Qxg5 {[%clk 0:01:52]} 21. Kh2 {[%clk 0:02:11]}  Nf7 {[%clk 0:01:27]} 22. Qc3 {[%clk 0:02:06]}  Nxe5 {[%clk 0:01:24]} 23. dxe5 {[%clk 0:02:07]}  Nh5 {[%clk 0:01:20]} 24. Rg1 {[%clk 0:01:57]}  Kh8 {[%clk 0:01:09]} 25. f4 {[%clk 0:01:53]}  Qh4 {[%clk 0:01:08]} 26. Qe1 {[%clk 0:01:53]}  Qe7 {[%clk 0:01:06]} 27. Qf2 {[%clk 0:01:49]}  Bd7 {[%clk 0:01:04]} 28. Nd4 {[%clk 0:01:50]}  Rg8 {[%clk 0:01:00]} 29. Bf3 {[%clk 0:01:46]}  Ng7 {[%clk 0:00:44]} 30. cxd5 {[%clk 0:01:43]}  cxd5 {[%clk 0:00:44]} 31. Rac1 {[%clk 0:01:44]}  Be8 {[%clk 0:00:44]} 32. Rc8 {[%clk 0:01:38]}  Bh5 {[%clk 0:00:42]} 33. Rxg8+ {[%clk 0:01:36]}  Kxg8 {[%clk 0:00:43]} 34. Bxh5 {[%clk 0:01:23]}  Rxh5 {[%clk 0:00:44]} 35. Qg3 {[%clk 0:01:15]}  Rh6 {[%clk 0:00:36]} 36. Qg5 {[%clk 0:01:13]}  Qxg5 {[%clk 0:00:34]} 37. Rxg5 {[%clk 0:01:14]}  Kf7 {[%clk 0:00:31]} 38. Rg1 {[%clk 0:01:06]}  Rg6 {[%clk 0:00:25]} 39. Rc1 {[%clk 0:01:05]}  Ne8 {[%clk 0:00:25]} 40. Rc8 {[%clk 0:01:01]}  Ke7 {[%clk 0:00:23]} 41. Rb8 {[%clk 0:00:57]}  b6 {[%clk 0:00:16]} 42. Rb7+ {[%clk 0:00:58]}  Kf8 {[%clk 0:00:14]} 43. Rxa7 {[%clk 0:00:58]}  Rg7 {[%clk 0:00:09]} 44. Rxg7 {[%clk 0:00:56]}  Nxg7 {[%clk 0:00:08]} 45. b4 {[%clk 0:00:57]}  Ke7 {[%clk 0:00:08]} 46. a5 {[%clk 0:00:57]}  bxa5 {[%clk 0:00:07]} 47. bxa5 {[%clk 0:00:57]}  Kd7 {[%clk 0:00:08]} 48. Kg3 {[%clk 0:00:54]}  Kc7 {[%clk 0:00:08]} 49. Kh4 {[%clk 0:00:55]}  h6 {[%clk 0:00:07]} 50. Nb5+ {[%clk 0:00:12]}  Kc6 {[%clk 0:00:06]} 51. Nd6 {[%clk 0:00:12]}  Kc7 {[%clk 0:00:03]} 52. Nf7 {[%clk 0:00:13]} 1-0


[Site "https://www.chess.com"]